bitfinex/quotes_BTCUSD_20240803
["timestamp","ask_amount","ask_price","bid_price","bid_amount"]
[1722699655582,0.01,61512.0,61511.0,0.15745924]
[1722699655852,0.14515422,61512.0,61511.0,0.65848156]
[1722699656092,0.14515422,61512.0,61511.0,0.17076456]
[1722699656572,0.14515422,61512.0,61511.0,0.65848156]
[1722699656820,0.13515422,61512.0,61511.0,0.98362656]
[1722699657089,0.13515462,61512.0,61511.0,0.49590956]
[1722699657346,0.01,61526.0,61525.0,0.162535]
[1722699657582,0.13512784,61526.0,61525.0,0.64597824]
[1722699657824,0.13512784,61526.0,61525.0,1.00748496]
[1722699658031,0.13512784,61526.0,61525.0,0.17180796]
[1722699658032,0.01,61526.0,61525.0,0.17180796]
[1722699658234,0.14511922,61526.0,61525.0,0.33434296]
[1722699658454,0.13512469,61526.0,61525.0,0.65941396]
[1722699658683,0.13512457,61526.0,61525.0,0.19480796]
[1722699658936,0.13511969,61530.0,61525.0,0.21528876]
[1722699659185,0.01,61531.0,61525.0,0.21528876]
[1722699659186,0.01,61531.0,61529.0,0.162524]
[1722699659436,0.13511929,61530.0,61529.0,0.162524]
[1722699659696,0.13511929,61530.0,61529.0,0.35385033]
[1722699660187,0.13511942,61530.0,61529.0,0.19132633]
[1722699660422,0.01,61530.0,61529.0,0.19132633]
[1722699660653,0.14512281,61530.0,61529.0,0.35385033]
[1722699660898,0.14512239,61530.0,61529.0,0.35385033]
[1722699661396,0.14912239,61530.0,61529.0,0.19132633]
[1722699661643,0.01,61526.0,61525.0,0.000913]
[1722699661894,0.38722239,61526.0,61525.0,0.000913]
[1722699662150,0.38723381,61526.0,61525.0,0.000913]
[1722699662443,0.58995051,61526.0,61525.0,0.000913]
[1722699662698,2.22254751,61526.0,61525.0,0.000913]
[1722699662944,1.97050388,61526.0,61525.0,0.000913]
[1722699663199,2.07050388,61526.0,61525.0,0.001913]
[1722699663693,2.07050388,61526.0,61510.0,0.32451]
[1722699663931,2.07050388,61526.0,61508.0,0.48774]
[1722699663932,0.01,61509.0,61508.0,0.48774]
[1722699664172,0.01,61509.0,61508.0,0.8129]
[1722699664428,0.14516155,61509.0,61508.0,0.05334789]
[1722699664943,0.14516155,61509.0,61508.0,0.16258]
[1722699665680,0.01,61504.0,61502.0,0.03266]
[1722699665929,0.01,61508.0,61507.0,0.487749]
[1722699666233,0.001,61509.0,61508.0,1.71396]
[1722699666445,0.001,61509.0,61508.0,1.91832]
[1722699666695,0.001,61509.0,61508.0,2.04132]
[1722699666955,0.404,61518.0,61517.0,1.137895]
[1722699667210,0.404,61518.0,61517.0,1.160895]
[1722699667478,0.404,61518.0,61517.0,0.835782]
[1722699667721,0.404,61518.0,61517.0,1.160895]
[1722699668000,0.07875194,61525.0,61524.0,0.81269]
[1722699668250,0.07875194,61525.0,61524.0,1.160766]
[1722699668810,0.08875194,61532.0,61531.0,0.812597]
[1722699669049,0.08875194,61532.0,61531.0,0.64501724]
[1722699669332,0.07875194,61532.0,61531.0,1.92665524]
[1722699669879,0.07875194,61532.0,61531.0,1.56895624]
[1722699670163,0.08275194,61532.0,61531.0,1.89499524]
[1722699670640,0.08275194,61532.0,61531.0,1.89399524]
[1722699670641,0.07875194,61532.0,61531.0,1.89399524]
[1722699670889,0.01,61526.0,61525.0,0.04844823]
[1722699671225,0.01,61525.0,61524.0,0.64507324]
[1722699671426,0.08875194,61525.0,61524.0,0.97014924]
[1722699671675,0.08875194,61525.0,61524.0,0.15745924]
[1722699672185,0.08875194,61525.0,61524.0,0.31999724]
[1722699672441,0.08875194,61525.0,61524.0,0.64507324]
[1722699672715,0.01,61513.0,61506.0,0.5759]
[1722699672944,0.01,61513.0,61512.0,0.487708]
[1722699673208,0.00481567,61524.0,61511.0,0.27428536]
[1722699673209,0.01,61520.0,61511.0,0.27428536]
[1722699673490,0.07875194,61524.0,61512.0,0.487708]
[1722699673491,0.07875194,61513.0,61512.0,0.487708]
[1722699673778,0.01,61514.0,61513.0,0.2090437]
[1722699674050,0.01,61511.0,61510.0,0.487725]
[1722699674299,0.01,61510.0,61509.0,0.64519024]
[1722699674547,0.01,61510.0,61509.0,1.00300524]
[1722699675803,0.01,61510.0,61509.0,1.02600524]
[1722699676357,0.07875194,61511.0,61506.0,0.331]
[1722699676358,0.01,61507.0,61506.0,0.03266]
[1722699676609,0.01,61507.0,61506.0,0.64521524]
[1722699677150,0.01,61507.0,61506.0,0.15745924]
[1722699677424,0.01,61508.0,61506.0,0.15745924]
[1722699677921,0.01,61508.0,61507.0,1.00628546]
[1722699678213,0.08875194,61511.0,61510.0,0.845535]
[1722699678486,0.08875194,61511.0,61510.0,1.00299424]
[1722699678732,0.01,61515.0,61514.0,1.137951]
[1722699679008,0.01,61521.0,61514.0,0.75765924]
[1722699679280,0.01,61521.0,61520.0,0.812742]
[1722699679806,0.00157439,61530.0,61521.0,0.520298]
[1722699679807,0.01,61522.0,61521.0,0.520298]
[1722699680052,0.08875194,61524.0,61523.0,0.16254]
[1722699680299,0.08875194,61524.0,61523.0,0.487621]
[1722699680590,0.08875194,61524.0,61523.0,0.99316124]
[1722699682095,0.07875194,61532.0,61523.0,0.99316124]
[1722699682096,0.01,61525.0,61524.0,0.487614]
[1722699682301,0.01,61525.0,61524.0,1.31822524]
[1722699682509,0.01,61525.0,61524.0,0.99314924]
[1722699682716,0.03549659,61525.0,61524.0,0.99314924]
[1722699682929,0.01,61525.0,61524.0,0.99314924]
[1722699683153,0.01,61525.0,61524.0,1.31822524]
[1722699683572,0.01,61525.0,61524.0,1.32622524]
[1722699683774,0.01,61525.0,61524.0,1.32416055]
[1722699684208,0.01,61531.0,61530.0,0.162522]
[1722699684436,0.07875194,61532.0,61530.0,0.162522]
[1722699684437,0.01,61532.0,61531.0,0.487558]
[1722699684646,0.01,61532.0,61531.0,1.29509524]
[1722699685264,0.01,61532.0,61531.0,1.31809524]
[1722699685473,0.07875194,61539.0,61534.0,0.325023]
[1722699685474,0.01,61535.0,61534.0,0.325023]
[1722699685715,0.01,61535.0,61534.0,0.97001624]
[1722699685911,0.01,61540.0,61537.0,0.325007]
[1722699686122,0.01,61540.0,61539.0,0.812492]
[1722699686331,0.01,61540.0,61539.0,1.32760824]
[1722699686765,0.02548961,61540.0,61539.0,1.32760824]
[1722699686982,0.02548961,61540.0,61539.0,2.33590524]
[1722699687400,0.0251304,61540.0,61539.0,2.33390524]
[1722699687822,0.0251304,61540.0,61539.0,2.35994413]
[1722699688508,0.0251304,61540.0,61539.0,2.03494713]
[1722699689338,0.0251304,61540.0,61539.0,2.35994413]
[1722699689572,0.0251304,61540.0,61539.0,2.02094713]
[1722699689774,0.0251304,61540.0,61539.0,2.03494713]
[1722699690185,0.0251304,61540.0,61539.0,1.47664713]
[1722699690860,0.0251304,61540.0,61539.0,2.72104413]
[1722699691071,1e-06,61546.0,61545.0,0.845072]
[1722699691281,0.010001,61546.0,61545.0,1.32749624]
[1722699691542,0.010001,61546.0,61545.0,1.33944348]
[1722699691814,0.010001,61546.0,61545.0,0.98181848]
[1722699692037,0.010001,61546.0,61545.0,0.65685348]
[1722699692249,0.010001,61546.0,61545.0,0.33188848]
[1722699692667,0.010001,61546.0,61545.0,0.65685348]
[1722699692869,0.010001,61546.0,61545.0,0.67085348]
[1722699693610,0.010001,61546.0,61545.0,0.66899526]
[1722699694056,0.010001,61546.0,61545.0,0.51339424]
[1722699694661,0.010001,61546.0,61545.0,0.67085348]
[1722699694903,0.010001,61546.0,61545.0,0.99581848]
[1722699695077,0.010001,61546.0,61545.0,0.67085348]
[1722699695632,0.010001,61546.0,61545.0,0.99581848]
[1722699695847,0.010001,61546.0,61545.0,1.29697848]
[1722699695848,1e-06,61546.0,61545.0,1.29697848]
[1722699696062,1e-06,61546.0,61545.0,1.62194348]
[1722699696273,0.010001,61546.0,61545.0,1.62194348]
[1722699696682,1e-06,61546.0,61545.0,1.6052195]
[1722699696929,1e-06,61546.0,61545.0,1.6171375]
[1722699697150,1e-06,61546.0,61545.0,1.2802545]
[1722699697578,1e-06,61546.0,61545.0,1.6052195]
[1722699702308,1e-06,61546.0,61545.0,2.0102195]
[1722699703358,1e-06,61546.0,61545.0,1.9102195]
[1722699705258,1e-06,61546.0,61545.0,2.2351845]
[1722699705463,1e-06,61546.0,61545.0,1.9102195]
[1722699705668,1e-06,61546.0,61545.0,2.2351845]
[1722699705871,1e-06,61546.0,61545.0,1.9102195]
[1722699706073,1e-06,61546.0,61545.0,2.0102195]
[1722699706295,1e-06,61546.0,61545.0,2.8318495]
[1722699706496,1e-06,61546.0,61545.0,2.5068845]
[1722699707106,1e-06,61546.0,61545.0,2.5288845]
[1722699707512,1e-06,61546.0,61545.0,2.5068845]
[1722699708146,1e-06,61546.0,61545.0,2.5288845]
[1722699708559,1e-06,61546.0,61545.0,2.3351845]
[1722699708765,1e-06,61546.0,61545.0,2.5064845]
[1722699712262,1e-06,61546.0,61545.0,2.5184845]
[1722699713285,1e-06,61546.0,61545.0,2.6700845]
[1722699713491,1e-06,61546.0,61545.0,2.7376074]
[1722699714146,1e-06,61546.0,61545.0,3.0625724]
[1722699714386,1e-06,61546.0,61545.0,2.7156074]
[1722699715350,1e-06,61546.0,61545.0,3.0625724]
[1722699716457,1e-06,61546.0,61545.0,3.0425724]
[1722699716659,1e-06,61546.0,61545.0,3.0625724]
[1722699717377,1e-06,61546.0,61545.0,2.7156074]
[1722699718762,1e-06,61546.0,61545.0,2.6480845]
[1722699718969,1e-06,61546.0,61545.0,2.4767845]
[1722699719173,1e-06,61546.0,61545.0,1.4783195]
[1722699720647,1e-06,61546.0,61545.0,1.6013195]
[1722699721286,1e-06,61546.0,61545.0,2.0975845]
[1722699721705,0.00916,61549.0,61548.0,1.49493]
[1722699721920,0.00916,61549.0,61548.0,2.43191233]
[1722699722412,0.00916,61549.0,61548.0,2.36438924]
[1722699722617,0.00916,61549.0,61548.0,2.36638924]
[1722699722822,0.00916,61549.0,61548.0,2.43190894]
[1722699723028,0.00916,61549.0,61548.0,2.92815794]
[1722699723262,0.00916,61549.0,61548.0,2.99662499]
[1722699723533,0.00916,61549.0,61548.0,2.98662499]
[1722699723739,0.00916,61549.0,61548.0,2.99862499]
[1722699723945,0.00916,61549.0,61548.0,2.98862499]
[1722699724167,0.00916,61549.0,61548.0,2.99862499]
[1722699724365,0.00916,61549.0,61548.0,2.88263824]
[1722699724575,0.00917,61559.0,61558.0,1.494692]
[1722699724803,0.00917,61559.0,61558.0,2.81754724]
[1722699724984,0.00917,61559.0,61558.0,2.8661124]
[1722699725227,0.00917,61559.0,61558.0,2.81754724]
[1722699725438,0.00916,61565.0,61564.0,1.494552]
[1722699725669,0.00916,61565.0,61564.0,2.25347624]
[1722699725894,0.00916,61565.0,61564.0,2.39382896]
[1722699726116,0.00916,61565.0,61564.0,2.56512498]
[1722699726337,0.00916,61575.0,61567.0,0.388384]
[1722699726576,0.00916,61575.0,61571.0,0.834802]
[1722699726791,0.00916,61575.0,61571.0,3.05797507]
[1722699727208,0.00916,61575.0,61574.0,1.864514]
[1722699727463,0.00916,61575.0,61574.0,2.54390799]
[1722699727675,0.00916,61575.0,61574.0,2.56684525]
[1722699727890,0.00917,61581.0,61580.0,0.19505]
[1722699728111,0.00917,61581.0,61580.0,1.12506924]
[1722699728324,0.00917,61581.0,61580.0,2.27070924]
[1722699728533,0.00917,61581.0,61580.0,2.27270924]
[1722699729190,0.00917,61581.0,61580.0,2.28670924]
[1722699729400,0.00917,61581.0,61580.0,2.33522332]
[1722699729607,0.00917,61581.0,61580.0,2.32122332]
[1722699729815,0.00917,61581.0,61580.0,1.94592924]
[1722699730077,0.00917,61581.0,61580.0,1.77462924]
[1722699730285,0.00917,61581.0,61580.0,1.46384924]
[1722699730286,0.01917,61581.0,61580.0,1.46384924]
[1722699731401,0.00917,61581.0,61580.0,1.78862924]
[1722699731611,0.00917,61581.0,61580.0,1.96965553]
[1722699731819,0.00917,61581.0,61580.0,2.28385553]
[1722699732039,0.00917,61581.0,61580.0,2.54755553]
[1722699732470,0.00917,61581.0,61580.0,2.54555553]
[1722699732923,0.01917,61590.0,61589.0,1.493958]
[1722699733138,0.01917,61590.0,61589.0,1.95131724]
[1722699733988,0.01917,61590.0,61589.0,1.42668424]
[1722699734206,0.01917,61590.0,61589.0,1.44068424]
[1722699734629,0.01917,61590.0,61589.0,1.46368424]
[1722699735327,0.46817,61590.0,61589.0,0.014]
[1722699735541,0.46817,61590.0,61583.0,0.324763]
[1722699735755,0.08875194,61584.0,61583.0,0.162382]
[1722699735959,0.08875194,61584.0,61583.0,0.15745924]
[1722699736153,0.08875194,61584.0,61583.0,0.31984124]
[1722699736625,0.08875194,61584.0,61567.0,0.1769]
[1722699736626,0.01,61573.0,61567.0,0.1769]
[1722699736824,0.01,61573.0,61572.0,1.11969124]
[1722699736975,0.01,61573.0,61572.0,1.44451324]
[1722699737186,0.01,61573.0,61572.0,1.80199524]
[1722699737385,0.01,61573.0,61572.0,0.15745924]
[1722699737765,0.01,61573.0,61556.0,0.7912]
[1722699737766,0.01,61560.0,61559.0,0.49737191]
[1722699737982,0.01,61560.0,61559.0,0.64479524]
[1722699738298,0.2003,61574.0,61559.0,0.64479524]
[1722699738299,0.00157439,61568.0,61567.0,0.195084]
[1722699738507,0.01,61570.0,61569.0,0.195079]
[1722699738685,0.00157439,61580.0,61571.0,0.162414]
[1722699738686,0.01,61572.0,61571.0,0.162414]
[1722699738890,0.01,61572.0,61571.0,0.64470124]
[1722699739093,0.01,61572.0,61571.0,0.96952924]
[1722699739529,0.01,61572.0,61571.0,0.99252924]
[1722699740070,0.01,61572.0,61562.0,0.252]
[1722699740071,0.01,61568.0,61562.0,0.357534]
[1722699740230,0.01,61566.0,61565.0,0.162429]
[1722699740428,0.00157439,61565.0,61564.0,0.162432]
[1722699740642,0.01157439,61565.0,61564.0,0.487297]
[1722699740839,0.01,61565.0,61564.0,0.844822]
[1722699741047,0.01,61565.0,61564.0,0.89587579]
[1722699741248,0.01,61565.0,61564.0,0.86321579]
[1722699742083,0.01,61565.0,61564.0,0.64475624]
[1722699742312,0.01,61565.0,61564.0,0.15745924]
[1722699742678,0.01,61563.0,61558.0,0.195107]
[1722699742895,0.08032633,61562.0,61559.0,0.15745924]
[1722699743108,0.01,61560.0,61559.0,0.15745924]
[1722699743307,0.01,61551.0,61550.0,0.162469]
[1722699743506,0.01,61551.0,61550.0,0.15745924]
[1722699743930,0.01,61551.0,61550.0,0.31992824]
[1722699744173,0.01,61551.0,61550.0,0.96980624]
[1722699744374,0.01,61551.0,61550.0,0.64486724]
[1722699744573,0.01,61551.0,61550.0,0.31992824]
[1722699744791,0.01,61551.0,61550.0,0.15745924]
[1722699744957,0.01,61551.0,61550.0,0.64486724]
[1722699745912,0.01,61551.0,61550.0,0.32392824]
[1722699746114,0.01,61551.0,61550.0,0.31992824]
[1722699746611,0.01,61546.0,61545.0,0.000913]
[1722699746833,0.01,61546.0,61545.0,0.15837224]
[1722699747086,0.2669,61546.0,61545.0,0.000913]
[1722699747335,0.48044128,61546.0,61545.0,0.000913]
[1722699747534,0.65292128,61546.0,61545.0,0.000913]
[1722699747741,0.65292128,61546.0,61516.0,0.431]
[1722699747742,0.01,61519.0,61518.0,0.81277]
[1722699747996,0.01,61519.0,61518.0,0.97022924]
[1722699748225,0.01,61519.0,61518.0,0.15745924]
[1722699748427,0.01,61508.0,61507.0,0.487749]
[1722699748633,0.01,61508.0,61507.0,0.67786824]
[1722699749089,0.256,61520.0,61512.0,0.487708]
[1722699749090,0.01,61513.0,61512.0,0.487708]
[1722699749319,0.01,61513.0,61512.0,1.00296624]
[1722699749731,0.01,61513.0,61512.0,0.97030624]
[1722699750353,0.01,61513.0,61512.0,0.98430624]
[1722699750981,0.01,61513.0,61512.0,0.33402824]
[1722699751201,0.01,61513.0,61512.0,0.014]
[1722699752077,0.01,61507.0,61506.0,0.812927]
[1722699752285,0.01,61507.0,61490.0,0.002]
[1722699752286,0.01,61498.0,61497.0,0.497893]
[1722699752498,0.01,61498.0,61497.0,0.16752424]
[1722699752499,0.08875194,61498.0,61497.0,0.16752424]
[1722699753167,0.08875194,61498.0,61497.0,0.010065]
[1722699753395,0.88835846,61498.0,61497.0,0.010065]
[1722699753596,0.2203,61484.0,61477.0,0.010065]
[1722699753812,0.29905194,61484.0,61477.0,0.010065]
[1722699754015,0.28905194,61484.0,61477.0,0.010065]
[1722699754233,0.28905194,61484.0,61479.0,0.325314]
[1722699754491,0.28905194,61484.0,61483.0,0.0446094]
[1722699754703,0.28905194,61484.0,61483.0,0.172711]
[1722699754918,0.28905194,61484.0,61483.0,0.010065]
[1722699755530,0.28905194,61484.0,61483.0,0.172711]
[1722699755531,0.08875194,61484.0,61483.0,0.172711]
[1722699755778,0.08875194,61484.0,61483.0,0.0283426]
[1722699755990,0.08875194,61484.0,61483.0,0.010065]
[1722699756632,0.09275194,61484.0,61483.0,0.034065]
[1722699757055,0.08875194,61484.0,61483.0,0.033065]
[1722699757262,0.08875194,61484.0,61483.0,0.195711]
[1722699757468,0.08875194,61484.0,61483.0,0.846297]
[1722699757676,0.09275194,61484.0,61483.0,0.846297]
[1722699757885,0.09275194,61484.0,61483.0,0.033065]
[1722699758099,0.09275194,61484.0,61483.0,0.91866324]
[1722699758100,0.014,61484.0,61483.0,0.91866324]
[1722699758382,0.014,61484.0,61483.0,2.02720224]
[1722699758383,0.004,61484.0,61483.0,2.02720224]
[1722699758774,0.01,61487.0,61486.0,1.138469]
[1722699758985,0.01,61487.0,61486.0,1.02631124]
[1722699759608,0.01,61487.0,61486.0,0.21311924]
[1722699759813,0.01,61487.0,61486.0,0.70103424]
[1722699760034,0.01,61487.0,61486.0,0.011]
[1722699760252,0.10875194,61487.0,61486.0,0.011]
[1722699760461,0.01,61484.0,61483.0,0.17271]
[1722699760671,0.01,61484.0,61483.0,0.1909875]
[1722699760928,0.01,61484.0,61483.0,1.32432574]
[1722699761149,0.01,61484.0,61483.0,0.99903274]
[1722699761356,0.01,61484.0,61483.0,1.35698574]
[1722699761565,0.01,61484.0,61483.0,1.32432574]
[1722699761984,0.01,61484.0,61483.0,1.34732574]
[1722699762228,0.01,61484.0,61483.0,1.05469274]
[1722699762677,0.01,61484.0,61483.0,0.20880174]
[1722699762898,0.01,61484.0,61483.0,0.2139885]
[1722699763139,0.01,61484.0,61483.0,0.2149885]
[1722699763140,0.014,61484.0,61483.0,0.2149885]
[1722699763350,0.014,61484.0,61483.0,0.0523425]
[1722699763626,0.4562,61484.0,61483.0,0.010065]
[1722699763838,0.4562,61484.0,61483.0,0.021065]
[1722699764070,0.4662,61484.0,61483.0,0.021065]
[1722699764287,1.0922,61484.0,61483.0,0.021065]
[1722699764934,1.43359494,61484.0,61483.0,0.021065]
[1722699765143,1.43359494,61484.0,61483.0,0.010065]
[1722699765144,1.60105418,61484.0,61483.0,0.010065]
[1722699765361,1.60305418,61484.0,61483.0,0.010065]
[1722699765606,1.44041118,61484.0,61483.0,0.010065]
[1722699766052,1.43841118,61484.0,61483.0,0.005065]
[1722699766251,1.44398557,61484.0,61483.0,0.006065]
[1722699766681,1.43998557,61484.0,61483.0,0.005065]
[1722699767102,1.43998557,61484.0,61483.0,0.006065]
[1722699767103,1.60662857,61484.0,61483.0,0.006065]
[1722699767357,1.93191557,61484.0,61483.0,0.006065]
[1722699767560,1.93191557,61484.0,61480.0,0.010065]
[1722699767561,0.953257,61481.0,61480.0,0.010065]
[1722699767778,5.37144162,61481.0,61480.0,0.010065]
[1722699767984,6.82819852,61481.0,61480.0,0.010065]
[1722699768397,4.33162081,61481.0,61480.0,0.010065]
[1722699768627,4.72669048,61481.0,61480.0,0.010065]
[1722699768859,5.18934148,61481.0,61480.0,0.010065]
[1722699769075,6.33655048,61481.0,61480.0,0.010065]
[1722699769290,1.024597,61478.0,61477.0,0.010065]
[1722699769532,0.2303,61464.0,61446.0,0.010065]
[1722699769737,1.02505194,61464.0,61446.0,0.33555]
[1722699769958,1.02505194,61464.0,61450.0,0.172798]
[1722699770165,1.02505194,61464.0,61450.0,0.010065]
[1722699770374,1.25485194,61464.0,61450.0,0.010065]
[1722699770590,1.39015367,61464.0,61450.0,0.010065]
[1722699770794,1.25485194,61464.0,61450.0,0.010065]
[1722699771003,1.23485194,61464.0,61450.0,0.335531]
[1722699771258,1.23485194,61464.0,61457.0,0.325428]
[1722699771259,1.18105035,61464.0,61457.0,0.325428]
[1722699771458,1.13485194,61464.0,61454.0,0.162722]
[1722699771689,1.13485194,61464.0,61453.0,0.32545]
[1722699771896,1.13985194,61464.0,61455.0,0.325438]
[1722699772100,0.93455194,61464.0,61455.0,0.325438]
[1722699772301,0.93455194,61464.0,61458.0,0.162711]
[1722699772505,0.93455194,61464.0,61457.0,0.162715]
[1722699772506,0.94555194,61464.0,61457.0,0.162715]
[1722699772685,0.94555194,61464.0,61456.0,0.162717]
[1722699772968,0.93455194,61464.0,61457.0,0.325427]
[1722699773224,0.70475194,61464.0,61457.0,0.325427]
[1722699773435,0.70575194,61464.0,61463.0,0.172764]
[1722699773752,0.70575194,61464.0,61463.0,0.0283479]
[1722699774056,0.70975194,61464.0,61463.0,0.010065]
[1722699774266,0.70975194,61464.0,61463.0,0.823562]
[1722699774267,0.70575194,61464.0,61463.0,0.823562]
[1722699774479,0.07975194,61464.0,61463.0,0.846562]
[1722699774681,0.09075194,61464.0,61463.0,1.00502124]
[1722699775218,0.09075194,61464.0,61463.0,1.03768124]
[1722699775420,0.08875194,61464.0,61463.0,1.00402124]
[1722699775643,0.08975194,61464.0,61463.0,1.00402124]
[1722699775879,0.09075194,61464.0,61463.0,1.00402124]
[1722699776343,0.08975194,61464.0,61463.0,0.195764]
[1722699776788,0.08975194,61464.0,61463.0,0.521163]
[1722699777008,0.08975194,61464.0,61463.0,0.033065]
[1722699777211,0.08875194,61464.0,61463.0,0.033065]
[1722699777421,0.09075194,61464.0,61463.0,0.041065]
[1722699777630,0.012,61464.0,61463.0,0.854562]
[1722699777835,0.011,61464.0,61463.0,1.01102124]
[1722699778044,0.011,61464.0,61463.0,1.04368124]
[1722699778253,0.011,61464.0,61463.0,1.58912024]
[1722699778664,0.011,61464.0,61463.0,1.61578024]
[1722699779098,0.011,61464.0,61463.0,1.62078024]
[1722699779251,0.011,61464.0,61463.0,1.93758024]
[1722699779472,0.01,61464.0,61463.0,2.25697924]
[1722699779811,0.011,61464.0,61463.0,2.36897924]
[1722699779935,0.001,61464.0,61463.0,2.36897924]
[1722699780143,0.001,61464.0,61463.0,2.87767824]
[1722699780346,0.01,61472.0,61471.0,1.496762]
[1722699780546,0.01,61472.0,61471.0,1.42886524]
[1722699780750,0.01,61472.0,61471.0,1.77722124]
[1722699780947,0.01,61478.0,61471.0,1.20997524]
[1722699781156,0.01,61476.0,61475.0,0.520662]
[1722699781357,0.01,61476.0,61475.0,1.35179124]
[1722699781586,0.05596947,61495.0,61475.0,1.35179124]
[1722699781587,0.01,61478.0,61477.0,1.41547]
[1722699781787,0.01,61478.0,61477.0,2.24657724]
[1722699781994,0.01,61478.0,61477.0,2.52347724]
[1722699782201,0.01,61478.0,61477.0,1.22418124]
[1722699782401,0.01,61478.0,61477.0,2.19815324]
[1722699782610,0.01,61476.0,61475.0,0.001]
[1722699782813,0.01,61476.0,61475.0,1.00445624]
[1722699783019,0.01,61476.0,61475.0,1.65512624]
[1722699783227,0.001,61478.0,61475.0,1.65512624]
[1722699783228,0.011,61478.0,61477.0,0.501722]
[1722699783431,0.01,61478.0,61477.0,2.17805324]
[1722699783661,0.01,61478.0,61477.0,1.52740524]
[1722699783866,0.00157439,61489.0,61478.0,0.520638]
[1722699783867,0.01,61479.0,61478.0,0.520638]
[1722699784131,0.01,61486.0,61482.0,0.03266]
[1722699784442,0.01,61487.0,61486.0,0.845852]
[1722699784659,0.01,61494.0,61493.0,0.19528]
[1722699784842,0.01,61494.0,61493.0,2.19728724]
[1722699785047,0.01,61497.0,61496.0,0.162612]
[1722699785257,0.01,61497.0,61496.0,1.35140324]
[1722699785666,0.01,61499.0,61498.0,0.162606]
[1722699785869,0.01,61499.0,61498.0,0.84517824]
[1722699786043,0.01,61499.0,61498.0,1.82081724]
[1722699786277,0.01,61499.0,61498.0,1.49560424]
[1722699786659,0.01,61502.0,61501.0,0.325197]
[1722699786861,0.01,61502.0,61501.0,0.50565624]
[1722699787233,0.01,61505.0,61502.0,0.5724]
[1722699787445,0.01,61505.0,61504.0,1.315037]
[1722699787652,0.07875194,61519.0,61505.0,0.81294]
[1722699787653,0.01,61506.0,61505.0,0.81294]
[1722699787801,0.01,61506.0,61505.0,1.62075124]
[1722699788005,0.01,61506.0,61505.0,1.68718291]
[1722699788207,0.01,61506.0,61505.0,1.36200691]
[1722699789773,0.01,61506.0,61505.0,1.68718291]
[1722699789951,0.01,61506.0,61505.0,1.70118291]
[1722699790153,0.01,61506.0,61505.0,1.37600691]
[1722699790352,0.001,61506.0,61505.0,2.28358291]
[1722699790553,0.001,61506.0,61505.0,2.38558291]
[1722699790758,0.01,61512.0,61511.0,1.463152]
[1722699790964,0.01,61514.0,61513.0,0.162567]
[1722699791097,0.01,61516.0,61515.0,0.162561]
[1722699791299,0.01,61520.0,61519.0,0.487653]
[1722699791511,0.01,61523.0,61522.0,0.520289]
[1722699791875,0.01,61523.0,61522.0,1.60482024]
[1722699792080,0.07875194,61541.0,61529.0,1.137671]
[1722699792081,0.01,61530.0,61529.0,1.137671]
[1722699792290,0.01,61530.0,61529.0,1.49503024]
[1722699792499,0.01,61530.0,61529.0,1.52769024]
[1722699792716,0.01,61530.0,61529.0,0.99308124]
[1722699792926,0.01,61530.0,61529.0,1.31813024]
[1722699793143,0.07875194,61548.0,61545.0,0.324965]
[1722699793357,0.01916,61546.0,61545.0,1.1928735]
[1722699793561,0.01916,61546.0,61545.0,0.8679085]
[1722699793810,0.01916,61546.0,61545.0,0.2179785]
[1722699794044,0.01916,61546.0,61545.0,0.5429435]
[1722699794253,0.01916,61546.0,61545.0,0.0324965]
[1722699794456,0.01916,61546.0,61532.0,0.812583]
[1722699794457,0.01,61533.0,61532.0,0.812583]
[1722699794691,0.01,61533.0,61530.0,0.03266]
[1722699794902,0.01,61523.0,61522.0,0.007]
[1722699795117,0.01,61523.0,61522.0,1.29526024]
[1722699795546,0.01,61523.0,61522.0,0.15745924]
[1722699795754,0.07875194,61534.0,61515.0,0.03266]
[1722699795755,0.01,61516.0,61515.0,0.520341]
[1722699795971,0.01,61516.0,61515.0,0.15745924]
[1722699796439,0.01,61516.0,61515.0,0.97026624]
[1722699796893,0.01,61516.0,61515.0,1.63444924]
[1722699797101,0.01,61516.0,61515.0,2.22557224]
[1722699797316,0.01,61519.0,61516.0,0.03266]
[1722699797522,0.01,61519.0,61518.0,1.47223724]
[1722699797738,0.01,61519.0,61518.0,1.52789724]
[1722699797954,0.01,61519.0,61518.0,1.85300524]
[1722699798171,0.01,61519.0,61518.0,1.95300524]
[1722699799365,0.01,61526.0,61518.0,0.49001924]
[1722699799599,0.47251164,61544.0,61528.0,0.520242]
[1722699799600,0.01,61529.0,61528.0,0.520242]
[1722699799808,0.01,61529.0,61528.0,1.75285624]
[1722699800021,0.01,61529.0,61528.0,2.52596624]
[1722699800234,0.00157439,61561.0,61528.0,2.52596624]
[1722699800235,0.01,61533.0,61532.0,0.812585]
[1722699800443,0.01,61533.0,61532.0,1.79701224]
[1722699800661,0.01,61533.0,61532.0,1.59497824]
[1722699800922,0.01,61533.0,61532.0,1.62763824]
[1722699801871,0.01,61533.0,61532.0,1.64163824]
[1722699802104,0.01,61533.0,61532.0,1.46237579]
[1722699802586,0.01,61533.0,61532.0,0.18815455]
[1722699802813,0.01,61533.0,61532.0,0.85222255]
[1722699803038,0.01,61533.0,61532.0,0.68464779]
[1722699803265,0.01,61533.0,61532.0,1.36737579]
[1722699803487,0.01,61533.0,61532.0,1.04234179]
[1722699803701,0.01,61533.0,61532.0,1.03268179]
[1722699803931,0.01,61533.0,61532.0,0.70764779]
[1722699804435,0.01,61533.0,61532.0,0.06263755]
[1722699804644,0.4401,61533.0,61532.0,0.03963755]
[1722699804888,0.4601,61533.0,61532.0,0.03963755]
[1722699805128,0.4401,61533.0,61532.0,0.028]
[1722699805387,0.4401,61533.0,61516.0,0.162559]